{"text_format":"1","workbook":"xlsx","n_sheets":4,"sheets":["tirage","groupe","Club","Feuil2"],"not_rendered":{"charts":0,"images":0,"macros":1,"external_links":0,"defined_names":1,"comments":0,"pivot_tables":0},"unopened":[],"bounds":{"document_bytes":16777216,"sheet_cells":100000,"rows_first":2000,"rows_last":500,"rows_between":2000,"halvings":0,"cell_chars":16384,"cell_head_chars":4096},"cells_cut":0,"cells_raw":0,"read":"whole","date_system":"1900"}

{"sheet":"tirage","index":0,"n_rows":22,"n_cols":8,"rows_kept":22,"cut":false,"hidden":false,"merged":[]}
["Clubs","groupes",null,null,null,null,null,"Groupes"]
["Pétanque du Lembron 4","Groupe 3",null,null,null,null,null,"Groupe 1"]
["But du Puy St Gulmier 2","Groupe 1",null,null,null,null,null,"Groupe 1"]
["PSA 3","Groupe 4",null,null,null,null,null,"Groupe 1"]
["LES AMIS VICOMTOIS 2","Groupe 1",null,null,null,null,null,"Groupe 1"]
["CUNLHAT 1","Groupe 1",null,null,null,null,null,"Groupe 1"]
["PALETS ANCIZOIS 1","Groupe 4",null,null,null,null,null,"Groupe 1"]
["LOUBEYRAT 2","Groupe 2",null,null,null,null,null,"Groupe 2"]
["DOMES ORCINES 1","Groupe 2",null,null,null,null,null,"Groupe 2"]
["MONTJOIE 2","Groupe 4",null,null,null,null,null,"Groupe 2"]
["GERZAT 1","Groupe 3",null,null,null,null,null,"Groupe 2"]
["MENETROL 1","Groupe 4",null,null,null,null,null,"Groupe 2"]
["LES VIGNETTES 1","Groupe 3",null,null,null,null,null,"Groupe 3"]
["LES AMIS VICOMTOIS 1","Groupe 1",null,null,null,null,null,"Groupe 3"]
["LE PAVE 1","Groupe 2",null,null,null,null,null,"Groupe 3"]
["BIBE POND DE SAURIER","Groupe 1",null,null,null,null,null,"Groupe 3"]
["PUY ST ROMAIN","Groupe 2",null,null,null,null,null,"Groupe 3"]
["PETANQUE DE LA GARE 1","Groupe 3",null,null,null,null,null,"Groupe 4"]
["LOUBEYRAT 1","Groupe 4",null,null,null,null,null,"Groupe 4"]
["P 2000 1","Groupe 2",null,null,null,null,null,"Groupe 4"]
["FANNY CLERMONT","Groupe 1",null,null,null,null,null,"Groupe 4"]
["PALLADUC 1","Groupe 3",null,null,null,null,null,"Groupe 4"]

{"sheet":"groupe","index":1,"n_rows":22,"n_cols":9,"rows_kept":22,"cut":false,"hidden":false,"merged":[]}
["Clubs","Groupes"]
[{"$f":"tirage!A5","v":"LES AMIS VICOMTOIS 2"},{"$f":"tirage!B5","v":"Groupe 1"},null,null,null,"Groupe 1","Groupe 2","Groupe 3","Groupe 4"]
[{"$f":"tirage!A6","v":"CUNLHAT 1"},{"$f":"tirage!B6","v":"Groupe 1"},null,null,null,{"$f":"A2","v":"LES AMIS VICOMTOIS 2"},{"$f":"A8","v":"LE PAVE 1"},{"$f":"A13","v":"Pétanque du Lembron 4"},{"$f":"A18","v":"PSA 3"}]
[{"$f":"tirage!A21","v":"FANNY CLERMONT"},{"$f":"tirage!B21","v":"Groupe 1"},null,null,null,{"$f":"A3","v":"CUNLHAT 1"},{"$f":"A9","v":"LOUBEYRAT 2"},{"$f":"A14","v":"PALLADUC 1"},{"$f":"A19","v":"LOUBEYRAT 1"}]
[{"$f":"tirage!A16","v":"BIBE POND DE SAURIER"},{"$f":"tirage!B16","v":"Groupe 1"},null,null,null,"FANNY CLERMONT","PUY ST ROMAIN","LES VIGNETTES 1","PALETS ANCIZOIS 1"]
[{"$f":"tirage!A3","v":"But du Puy St Gulmier 2"},{"$f":"tirage!B3","v":"Groupe 1"},null,null,null,"BIBE POND DE SAURIER","P 2000 1","GERZAT 1","MONTJOIE 2"]
[{"$f":"tirage!A14","v":"LES AMIS VICOMTOIS 1"},{"$f":"tirage!B14","v":"Groupe 1"},null,null,null,"But du Puy St Gulmier 2","DOMES ORCINES 1","PETANQUE DE LA GARE 1","MENETROL 1"]
[{"$f":"tirage!A15","v":"LE PAVE 1"},{"$f":"tirage!B15","v":"Groupe 2"},null,null,null,"LES AMIS VICOMTOIS 1"]
[{"$f":"tirage!A8","v":"LOUBEYRAT 2"},{"$f":"tirage!B8","v":"Groupe 2"}]
[{"$f":"tirage!A17","v":"PUY ST ROMAIN"},{"$f":"tirage!B17","v":"Groupe 2"}]
[{"$f":"tirage!A20","v":"P 2000 1"},{"$f":"tirage!B20","v":"Groupe 2"}]
[{"$f":"tirage!A9","v":"DOMES ORCINES 1"},{"$f":"tirage!B9","v":"Groupe 2"}]
[{"$f":"tirage!A2","v":"Pétanque du Lembron 4"},{"$f":"tirage!B2","v":"Groupe 3"}]
[{"$f":"tirage!A22","v":"PALLADUC 1"},{"$f":"tirage!B22","v":"Groupe 3"}]
[{"$f":"tirage!A13","v":"LES VIGNETTES 1"},{"$f":"tirage!B13","v":"Groupe 3"}]
[{"$f":"tirage!A11","v":"GERZAT 1"},{"$f":"tirage!B11","v":"Groupe 3"}]
[{"$f":"tirage!A18","v":"PETANQUE DE LA GARE 1"},{"$f":"tirage!B18","v":"Groupe 3"}]
[{"$f":"tirage!A4","v":"PSA 3"},{"$f":"tirage!B4","v":"Groupe 4"}]
[{"$f":"tirage!A19","v":"LOUBEYRAT 1"},{"$f":"tirage!B19","v":"Groupe 4"}]
[{"$f":"tirage!A7","v":"PALETS ANCIZOIS 1"},{"$f":"tirage!B7","v":"Groupe 4"}]
[{"$f":"tirage!A10","v":"MONTJOIE 2"},{"$f":"tirage!B10","v":"Groupe 4"}]
[{"$f":"tirage!A12","v":"MENETROL 1"},{"$f":"tirage!B12","v":"Groupe 4"}]

{"sheet":"Club","index":2,"n_rows":257,"n_cols":1,"rows_kept":257,"cut":false,"hidden":false,"merged":[]}
["Club"]
["ASB Pétanque La Bourboule 1"]
["ASB Pétanque La Bourboule 2"]
["But du Puy St Gulmier 1"]
["But du Puy St Gulmier 2"]
["Joyeux Cochonnet St Ours 1"]
["Joyeux Cochonnet St Ours 2"]
["La Boule Bessarde 1"]
["La Boule Bessarde 2"]
["Le Mont Dore Pétanque"]
["Mont Dore Pétanque"]
["Pétanque Chapdes Beaufort 1"]
["Pétanque Chapdes Beaufort 2"]
["Pétanque de Messeix"]
["Pétanque des Cheires"]
["Pétanque Gelloise"]
["Pétanque Goutelloise"]
["Pétanque Pontaumuroise 1"]
["Pétanque Pontaumuroise 2"]
["Sancy Artense Pétanque"]
["St Genès Champanelle "]
["Amicale Laique Jean Zay Pétanque"]
["Dômes Orcines Pétanque 1"]
["Dômes Orcines Pétanque 2"]
["Dômes Orcines Pétanque 3"]
["Dômes Orcines Pétanque 4"]
["Les Amis Cheminots 1"]
["Les Amis Cheminots 2"]
["Cercle Sport Pétanque Chamalières 1"]
["Cercle Sport Pétanque Chamalières 2"]
["Cercle Sport Pétanque Chamalières 3"]
["Pétanque La Plaine 1"]
["Pétanque La Plaine 2"]
["Pétanque Lecuelle 1"]
["Pétanque Lecuelle 2"]
["Pétanque Sportive des Aulnes 2"]
["Pétanque Sportive des Aulnes 3"]
["Pétanque Sportive des Aulnes 4"]
["Pétanque Sportive des Aulnes 5"]
["Pétanque Sportive des Aulnes 6"]
["Pétanque Sportive des Aulnes 7"]
["Pétanque Sportive des Aulnes 8"]
["A S Banque de France "]
["La Boule Le Central 1"]
["La Boule Le Central 2"]
["La Fanny de Clermont"]
["Le Cochonnet Aubiérois 1"]
["Le Cochonnet Aubiérois 2"]
["Le Cochonnet Aubiérois 3"]
["Le Cochonnet Aubiérois 4"]
["Pétanque Boisséjour "]
["Pétanque Ceyratoise 1"]
["Pétanque Ceyratoise 2"]
["Pétanque Ceyratoise 3"]
["Pétanque Ceyratoise 4"]
["Pétanque de Romagnat 1"]
["Pétanque de Romagnat 2"]
["Pétanque de Romagnat 3"]
["Pétanque de Royat"]
["Pétanque de Veyre Monton 1"]
["Pétanque de Veyre Monton 2"]
["Pétanque de Veyre Monton 3"]
["Pétanque de Veyre Monton 4"]
["Pétanque de Veyre Monton 5"]
["Pétanque de Veyre Monton 6"]
["Pétanque de Veyre Monton 7"]
["Pétanque de Veyre Monton 8"]
["Pétanque Des Liondards 1"]
["Pétanque Des Liondards 2"]
["Pétanque Vercingétorix 1"]
["Pétanque Vercingétorix 2"]
["Pétanque Vercingétorix 3"]
["Pétanque Vercingétorix 4"]
["Salins Pétank 1"]
["Salins Pétank 2"]
["Stade Clermontois"]
["Amical Pétanque Sauxillanges"]
["Amicale Combelloise"]
["Brassaget Pétanque 1"]
["Brassaget Pétanque 2"]
["Brassaget Pétanque 3"]
["Champeix Pétanque"]
["Fanny du Bout du Monde 1"]
["Fanny du Bout du Monde 2"]
["Neschers Pétanque"]
["Pétanque Combelloise"]
["Pétanque Brassacoise 1"]
["Pétanque Brassacoise 2"]
["Pétanque Brassacoise 3"]
["Pétanque de Perrier"]
["Pétanque du Lembron 1"]
["Pétanque du Lembron 2"]
["Pétanque du Lembron 3"]
["Pétanque du Lembron 4"]
["Pétanque Jumeaudoise 1"]
["Pétanque Jumeaudoise 2"]
["Pétanque Jumeaudoise 3"]
["Pétanque Le  Bibe-Rond "]
["Pétanque Sugerienne"]
["Pétanque Yrondoise"]
["SCB PétanqueLe Breuil sur Couze"]
["U S Issoire Pétanque 1"]
["U S Issoire Pétanque 2"]
["Amicale Pétanque Beauregard Lévèque 1"]
["Amicale Pétanque Beauregard Lévèque 2"]
["Amicale Pétanque Beauregard Lévèque 3"]
["Amicale Pétanque Beauregard Lévèque 4"]
["Amicale Pétanque Mezelloise"]
["Fraternelle Amicale Cournon Le Cendre 1"]
["Fraternelle Amicale Cournon Le Cendre 2"]
["Fraternelle Amicale Cournon Le Cendre 3"]
["Fraternelle Amicale Cournon Le Cendre 4"]
["JC Cournon 1"]
["JC Cournon 2"]
["JC Cournon 3"]
["Joyeuse Pétanque de Pont du Château 1"]
["Joyeuse Pétanque de Pont du Château 2"]
["Joyeuse Pétanque de Pont du Château 3"]
["Joyeux Cochonnet Billomois 1"]
["Joyeux Cochonnet Billomois 2"]
["Joyeux Cochonnet Billomois 3"]
["Joyeux Cochonnet Billomois 4"]
["Les Amis Vicomtois 1"]
["Les Amis Vicomtois 2"]
["Les Amis Vicomtois 3"]
["Péranque de Lempdes"]
["Pétanque 2000 -1"]
["Pétanque 2000 -2"]
["Pétanque 2000 -3"]
["Pétanque 2000 -4"]
["Pétanque 2000 -5"]
["Pétanque 2000 -6"]
["Pétanque Club de Chauriat"]
["Pétanque de Moissat"]
["Pétanque de Sallèdes"]
["Pétanque du Geyser 1"]
["Pétanque du Geyser 2"]
["Pétanque Fanny Artonnoise"]
["Pétanque Orcetoise"]
["Pétanque Plauzatoise 1"]
["Pétanque Plauzatoise 2"]
["Pétanque Plauzatoise 3"]
["Pétanque Puy Saint Romain"]
["Pétanque Seychalloise"]
["ASPP Moulet Marcenat 1"]
["ASPP Moulet Marcenat 2"]
["Blanzat Pétanque"]
["La Bouliche d'Or "]
["La Casteljoyeuse"]
["Le Carreau du Fort"]
["Le Cochonnet Mitrodaire 1"]
["Le Cochonnet Mitrodaire 2"]
["Le Cochonnet Mitrodaire 3"]
["Le Palet Ancizois 1"]
["Le Palet Ancizois 2"]
["Le Palet Ancizois 3"]
["Pétanque Aiguepersoise"]
["Pétanque Beauvetoise 1"]
["Pétanque Beauvetoise 2"]
["Pétanque Beauvetoise 3"]
["Pétanque Beauvetoise 4"]
["Pétanque de Chatel Guyon 1"]
["Pétanque de Chatel Guyon 2"]
["Pétanque de Chatel Guyon 3"]
["Pétanque de Crouzol Volvic 1"]
["Pétanque de Crouzol Volvic 2"]
["Pétanque de Crouzol Volvic 3"]
["Pétanque de Gerzat 1"]
["Pétanque de Gerzat 2"]
["Pétanque de Gerzat 3"]
["Pétanque de Gerzat 4"]
["Pétanque de Loubeyrat 1"]
["Pétanque de Loubeyrat 2"]
["Pétanque de Loubeyrat 3"]
["Pétanque de Loubeyrat 4"]
["Pétanque de Loubeyrat 5"]
["Pétanque de Loubeyrat 6"]
["Pétanque de Loubeyrat 7"]
["Pétanque d'Entraigues "]
["Pétanque des Charmes 1"]
["Pétanque des Charmes 2"]
["Pétanque Manzatoise 1"]
["Pétanque Manzatoise 2"]
["Pétanque Maringuoise"]
["Riom Pétanque 1"]
["Riom Pétanque 2"]
["Joyeuse Pétanque du Moulin Parrot "]
["Le Cochonnet  Montacutain "]
["Les Amis du Bayons 1"]
["Les Amis du Bayons 2"]
["Pétanque Biollet Charensat "]
["Pétanque des Panchettes"]
["Union Bouliste de Montjoie 1"]
["Union Bouliste de Montjoie 2"]
["Union Bouliste de Montjoie 3"]
["Union Bouliste de Montjoie 4"]
["Union Bouliste de Montjoie 5"]
["Union Bouliste Piogatoise 1"]
["Union Bouliste Piogatoise 2"]
["Union Bouliste Piogatoise 3"]
["Union Bouliste Piogatoise 4"]
["US St Gervais Pétanque 1"]
["US St Gervais Pétanque 2"]
["Amicale Boule Les Vignettes 1"]
["Amicale Boule Les Vignettes 2"]
["La Boule Bortoise 1"]
["La Boule Bortoise 2"]
["La Boule Bortoise 3"]
["La Pétanque Augerolloise 1"]
["La Pétanque Augerolloise 2"]
["Le Cochonnet  Cunlhatois"]
["Les Copains du Bouchon 1"]
["Les Copains du Bouchon 2"]
["Lombard Pétanque 1"]
["Lombard Pétanque 2"]
["Lombard Pétanque 3"]
["Lombard Pétanque 4"]
["Palladuc Pétanque 1"]
["Palladuc Pétanque 2"]
["Pétanque  de Limarie 1"]
["Pétanque  de Limarie 2"]
["Pétanque Arlancoise 1"]
["Pétanque Arlancoise 2"]
["Pétanque Arlancoise 3"]
["Pétanque Arlancoise 4"]
["Pétanque Arlancoise 5"]
["Pétanque Crevantoise"]
["Pétanque de la Gare 1"]
["Pétanque de la Gare 2"]
["Pétanque de la Gare 3"]
["Pétanque de la Gare 4"]
["Pétanque de Néronde 1"]
["Pétanque de Néronde 2"]
["Pétanque du  Pavé 1"]
["Pétanque du  Pavé 2"]
["Pétanque du  Pavé 3"]
["Pétanque du  Pavé 4"]
["Pétanque du  Pavé 5"]
["Pétanque du Foirail"]
["Pétanque du Haut Livradois 1"]
["Pétanque du Haut Livradois 2"]
["Pétanque Monnerinoise"]
["Pétanque Ollierguoise 1"]
["Pétanque Ollierguoise 2"]
["Pétanque Ollierguoise 3"]
["Pétanque Ollierguoise 4"]
["Pétanque St Ferreol des Côtes 1"]
["Pétanque St Ferreol des Côtes 2"]
["Pétanque St Ferreol des Côtes 3"]
["Pétanque St Rémoise"]
["Pétanque Vertolayaise 1"]
["Pétanque Vertolayaise 2"]
["Pétanque Viscomtatoise 1"]
["Pétanque Viscomtatoise 2"]
["Pétanque Viscomtatoise 3"]
["X"]
["Y"]

{"sheet":"Feuil2","index":3,"n_rows":1,"n_cols":1,"rows_kept":1,"cut":false,"hidden":true,"merged":[]}
["https://www.excel-pratique.com/fr/telechargements/utilitaires/tirage-au-sort-de-lots-no51.php"]